bitfinex/quotes_SOLUSD_20240808
["timestamp","ask_amount","ask_price","bid_price","bid_amount"]
[1723128696782,33.9,159.76,159.6,20.0]
[1723128697004,33.9,159.76,159.61,0.17]
[1723128697384,0.17,159.75,159.61,0.17]
[1723128697880,33.9,159.76,159.61,0.17]
[1723128698903,33.9,159.76,159.64,0.17]
[1723128699205,33.9,159.76,159.61,0.17]
[1723128699407,33.9,159.76,159.63,0.17]
[1723128700100,33.9,159.79,159.63,0.17]
[1723128700302,1.56508093,159.78,159.63,0.17]
[1723128700798,33.9,159.79,159.63,0.17]
[1723128701299,0.17,159.78,159.63,0.17]
[1723128701500,45.34,159.78,159.63,0.17]
[1723128701694,1.56518987,159.77,159.63,0.17]
[1723128701880,40.41211897,159.79,159.63,0.17]
[1723128702299,6.51211897,159.79,159.63,0.17]
[1723128702694,6.51211897,159.79,159.62,65.17]
[1723128703005,8.07699343,159.79,159.63,0.17]
[1723128703206,6.51211897,159.79,159.63,0.17]
[1723128704016,45.34,159.78,159.63,0.17]
[1723128704189,1.56529472,159.77,159.63,0.17]
[1723128704393,1.9053831,159.76,159.63,0.17]
[1723128704704,0.17,159.76,159.63,0.17]
[1723128704903,1.90521521,159.77,159.63,0.17]
[1723128705106,1.90521521,159.77,159.57,57.1439]
[1723128705313,1.56536796,159.76,159.58,20.0]
[1723128705489,0.34,159.77,159.58,20.0]
[1723128705684,6.51211897,159.79,159.58,20.0]
[1723128705901,6.2768,159.8,159.61,33.9]
[1723128706086,6.2768,159.8,159.62,20.0]
[1723128706289,6.2768,159.8,159.63,0.17]
[1723128706491,6.2768,159.8,159.63,0.34]
[1723128706922,33.9,159.78,159.63,0.17]
[1723128707096,1.73528879,159.77,159.63,0.17]
[1723128707493,0.17,159.77,159.63,0.17]
[1723128707900,33.9,159.79,159.63,0.17]
[1723128708113,6.2768,159.8,159.63,0.17]
[1723128708317,1.5650938,159.79,159.65,0.17]
[1723128708515,6.2768,159.8,159.65,0.17]
[1723128708701,1.56500345,159.79,159.65,0.17]
[1723128708908,6.2768,159.8,159.65,0.17]
[1723128709099,0.17,159.79,159.65,0.17]
[1723128709301,45.34,159.79,159.65,0.17]
[1723128709492,1.56498019,159.78,159.58,20.0]
[1723128709822,45.34,159.79,159.58,20.0]
[1723128709823,1.9052368,159.77,159.58,20.0]
[1723128710022,1.7352368,159.77,159.58,20.0]
[1723128710312,0.17,159.76,159.58,20.0]
[1723128710514,0.17,159.77,159.58,20.0]
[1723128710707,0.17,159.78,159.58,20.0]
[1723128710918,45.17,159.79,159.58,20.0]
[1723128711422,0.17,159.78,159.58,20.0]
[1723128711604,45.17,159.79,159.59,0.34]
[1723128712005,6.50568629,159.83,159.64,33.9]
[1723128712213,40.5261,159.85,159.66,6.0792]
[1723128712404,40.5261,159.85,159.67,20.34]
[1723128714313,45.0,159.84,159.67,20.34]
[1723128714826,0.34,159.83,159.67,20.34]
[1723128715126,0.34,159.83,159.66,6.0792]
[1723128715127,1.56461905,159.82,159.62,15.6985]
[1723128715315,15.9838,159.81,159.62,15.6985]
[1723128715511,33.9,159.79,159.62,15.6985]
[1723128715722,0.34,159.78,159.62,15.6985]
[1723128715918,0.17,159.81,159.62,15.6985]
[1723128717233,0.17,159.81,159.63,0.17]
[1723128717436,0.34,159.81,159.63,0.34]
[1723128717924,0.34,159.81,159.63,20.34]
[1723128718133,0.34,159.81,159.63,54.24]
[1723128718313,45.0,159.82,159.65,5.7827]
[1723128718633,45.0,159.82,159.66,20.34]
[1723128719132,33.9,159.83,159.66,20.34]
[1723128719629,33.9,159.83,159.67,45.0]
[1723128719821,33.9,159.83,159.68,20.34]
[1723128720016,1.56447244,159.82,159.68,20.34]
[1723128720217,1.56470678,159.84,159.68,20.0]
[1723128720427,1.56470678,159.84,159.65,5.7827]
[1723128720428,1.56470678,159.84,159.66,20.0]
[1723128720639,33.9,159.83,159.66,20.0]
[1723128720935,1.56470685,159.82,159.66,20.0]
[1723128721244,35.46479332,159.83,159.66,20.0]
[1723128721417,0.17,159.81,159.65,5.7827]
[1723128721610,33.9,159.79,159.65,5.7827]
[1723128721812,46.90548617,159.78,159.65,5.7827]
[1723128722225,45.34,159.78,159.65,5.7827]
[1723128722437,1.56539523,159.77,159.65,5.7827]
[1723128722615,33.9,159.75,159.6,5.7827]
[1723128722933,45.34,159.74,159.6,5.7827]
[1723128723308,1.56581535,159.73,159.6,5.7827]
[1723128723513,0.34,159.72,159.6,5.7827]
[1723128723823,0.17,159.72,159.6,5.7827]
[1723128724133,1.56568243,159.72,159.6,5.7827]
[1723128724513,45.17,159.74,159.6,5.7827]
[1723128724514,0.34,159.71,159.6,5.7827]
[1723128724713,45.17,159.74,159.63,20.0]
[1723128724929,0.17,159.73,159.63,20.0]
[1723128726015,1.73552706,159.73,159.63,20.0]
[1723128726335,0.17,159.72,159.63,20.0]
[1723128726914,45.0,159.74,159.63,20.0]
[1723128728728,1.56549384,159.73,159.63,20.0]
[1723128728948,0.17,159.72,159.62,15.6985]
[1723128729138,45.0,159.74,159.62,15.6985]
[1723128729335,0.34,159.73,159.62,15.6985]
[1723128729532,0.17,159.73,159.62,15.6985]
[1723128729715,1.56559712,159.73,159.62,15.6985]
[1723128729915,0.17,159.72,159.62,15.6985]
[1723128730115,0.17,159.73,159.62,15.6985]
[1723128730737,1.56557939,159.73,159.63,20.0]
[1723128730930,51.67489054,159.74,159.63,20.0]
[1723128731123,0.34,159.73,159.63,20.0]
[1723128731324,1.90577429,159.73,159.63,20.0]
[1723128731524,0.34,159.73,159.63,20.0]
[1723128732441,1.5655994,159.73,159.62,15.8685]
[1723128732639,6.50489054,159.74,159.63,20.34]
[1723128732816,6.3482256,159.8,159.63,20.34]
[1723128732817,5.95913567,159.79,159.63,20.34]
[1723128733019,6.5812,159.82,159.63,20.34]
[1723128733326,6.50862294,159.82,159.64,50.7827]
[1723128733528,6.50862294,159.82,159.65,20.34]
[1723128733916,8.0733735,159.82,159.65,20.34]
[1723128734228,11.24529603,159.82,159.65,20.34]
[1723128734429,1.56516856,159.81,159.65,20.34]
[1723128734756,8.0736981,159.82,159.65,20.34]
[1723128735231,45.34,159.81,159.65,20.34]
[1723128735419,1.56522933,159.8,159.65,20.34]
[1723128735724,0.34,159.79,159.65,20.34]
[1723128735929,45.34,159.81,159.65,20.34]
[1723128736433,46.90493209,159.81,159.65,20.34]
[1723128736618,6.50862294,159.82,159.65,54.24]
[1723128737528,6.50862294,159.82,159.66,45.0]
[1723128737752,6.50862294,159.82,159.67,20.34]
[1723128738044,6.50862294,159.82,159.68,0.17]
[1723128738246,6.50862294,159.82,159.67,0.17]
[1723128738432,1.56499581,159.81,159.66,0.17]
[1723128738636,1.56499581,159.81,159.65,0.17]
[1723128738637,1.56499581,159.81,159.65,0.34]
[1723128738825,6.50862294,159.82,159.65,0.34]
[1723128739239,45.0,159.81,159.65,45.34]
[1723128739440,45.0,159.81,159.65,0.34]
[1723128739617,1.73467764,159.8,159.65,0.34]
[1723128739823,0.17,159.8,159.65,20.34]
[1723128740032,1.73494706,159.8,159.65,20.34]
[1723128740549,0.17,159.79,159.65,20.34]
[1723128740736,1.73500085,159.79,159.65,20.34]
[1723128741044,1.73500085,159.79,159.64,5.7827]
[1723128741045,1.73519883,159.78,159.64,5.7827]
[1723128741253,6.5295,159.77,159.64,5.7827]
[1723128741435,45.0,159.76,159.64,5.7827]
[1723128741741,0.34,159.75,159.64,5.7827]
[1723128742541,0.34,159.75,159.57,5.7827]
[1723128742741,1.5655437,159.74,159.57,5.7827]
[1723128742942,0.34,159.75,159.57,5.7827]
[1723128743330,1.73558885,159.75,159.59,33.9]
[1723128743544,46.56535127,159.76,159.59,33.9]
[1723128743746,46.56535127,159.76,159.6,20.0]
[1723128743922,0.34,159.75,159.6,20.0]
[1723128744541,1.56555965,159.74,159.61,0.17]
[1723128744749,0.34,159.73,159.58,20.0]
[1723128745049,0.17,159.73,159.58,20.0]
[1723128745251,3.34163812,159.75,159.58,20.0]
[1723128745452,1.73561208,159.74,159.58,20.0]
[1723128745633,0.17,159.73,159.58,20.0]
[1723128745833,45.17,159.73,159.58,20.0]
[1723128746047,0.17,159.73,159.59,0.17]
[1723128746233,0.17,159.73,159.59,0.34]
[1723128747634,1.7356152,159.73,159.59,0.34]
[1723128747835,0.17,159.73,159.59,0.34]
[1723128748144,1.56561629,159.73,159.59,0.34]
[1723128748349,40.40535661,159.76,159.59,0.34]
[1723128748550,41.97093221,159.76,159.59,0.34]
[1723128748748,20.0,159.75,159.59,0.17]
[1723128748954,10.99802169,159.74,159.57,5.7827]
[1723128749258,10.99802169,159.74,159.56,0.05186673]
[1723128749259,33.9,159.66,159.56,0.05186673]
[1723128749566,0.17,159.65,159.53,0.05187648]
[1723128749849,3.17163812,159.62,159.53,0.05187648]
[1723128750031,22.5477,159.54,159.47,0.8354333]
[1723128750228,33.9,159.52,159.47,0.8354333]
[1723128750448,0.17,159.53,159.47,0.8354333]
[1723128750754,45.0,159.53,159.47,0.8354333]
[1723128751056,0.17,159.52,159.47,7.1058333]
[1723128751244,1.73774216,159.52,159.47,0.8354333]
[1723128751438,45.17,159.53,159.47,0.8354333]
[1723128752037,45.0,159.53,159.47,0.8354333]
[1723128752353,0.17,159.52,159.48,6.2703]
[1723128752550,0.34,159.52,159.47,7.1060333]
[1723128752854,34.24,159.52,159.47,0.8354333]
[1723128753038,46.56807414,159.51,159.47,0.8354333]
[1723128753235,45.0,159.51,159.47,0.8354333]
[1723128753735,45.0,159.51,159.5,6.2695]
[1723128753947,33.9,159.51,159.47,0.8354333]
[1723128754252,1.56792778,159.5,159.47,0.8354333]
[1723128754453,33.9,159.48,159.47,0.8354333]
[1723128754656,35.46849619,159.48,159.47,1e-08]
[1723128754856,55.46849619,159.48,159.32,6.5851]
[1723128755235,65.34,159.47,159.29,19.16426784]
[1723128755643,1.56846131,159.46,159.29,19.16426784]
[1723128755953,65.34,159.47,159.29,19.16426784]
[1723128755954,0.34,159.45,159.29,19.16426784]
[1723128756151,65.0,159.47,159.29,19.16426784]
[1723128756353,66.56845933,159.47,159.29,19.16426784]
[1723128756949,45.0,159.47,159.29,19.16426784]
[1723128757450,1.56830868,159.47,159.31,0.34]
[1723128757636,6.51551739,159.5,159.34,33.9]
[1723128757841,1.5677471,159.53,159.35,45.34]
[1723128758041,56.4477,159.54,159.35,45.34]
[1723128758241,1.56756318,159.53,159.36,20.0]
[1723128758749,64.52939742,159.54,159.32,20.0]
[1723128759266,33.9,159.51,159.32,20.0]
[1723128759568,62.96157801,159.54,159.35,6.1196]
[1723128759732,6.40028868,159.56,159.38,16.3313]
[1723128759938,6.40028868,159.56,159.4,33.9]
[1723128760153,6.40028868,159.56,159.41,0.17]
[1723128760353,6.40028868,159.56,159.41,65.17]
[1723128760638,6.40028868,159.56,159.43,33.9]
[1723128760863,6.40028868,159.56,159.44,26.8779]
[1723128761356,22.19652322,159.64,159.46,33.9]
[1723128761537,15.6921,159.64,159.47,65.34]
[1723128762455,6.51322967,159.67,159.49,33.9]
[1723128762773,1.56614592,159.66,159.5,20.34]
[1723128763240,1.56614592,159.66,159.51,20.0]
[1723128763446,1.56614592,159.66,159.52,0.34]
[1723128763645,1.56614592,159.66,159.52,0.17]
[1723128763861,33.9,159.67,159.52,0.17]
[1723128764142,33.9,159.67,159.49,20.0]
[1723128764143,33.9,159.64,159.48,16.5637]
[1723128764356,33.9,159.61,159.42,15.4091]
[1723128764558,35.46710376,159.61,159.43,2.78575178]
[1723128764759,33.9,159.67,159.43,2.78575178]
[1723128764760,1.56705256,159.65,159.44,40.4379]
[1723128764965,35.46656914,159.67,159.47,33.9]
[1723128765381,0.17,159.66,159.48,45.34]
[1723128765544,1.73653635,159.66,159.48,45.34]
[1723128765886,1.56653797,159.65,159.45,6.6044]
[1723128766052,33.9,159.62,159.45,6.6044]
[1723128766252,46.73718795,159.61,159.45,6.6044]
[1723128766482,0.17,159.6,159.45,6.6044]
[1723128766771,1.56693643,159.6,159.45,6.6044]
[1723128767074,1.56685481,159.66,159.46,33.9]
[1723128767259,0.17,159.65,159.46,33.9]
[1723128767584,2.78188729,159.69,159.49,33.9]
[1723128767742,51.32107278,159.7,159.5,45.34]
[1723128767947,49.7545,159.7,159.51,20.0]
[1723128768142,49.7545,159.7,159.52,0.34]
[1723128768369,22.36126474,159.7,159.53,15.2883]
[1723128768666,6.1679,159.71,159.55,6.5852]
[1723128768873,6.1679,159.71,159.56,0.17]
[1723128769085,6.1679,159.71,159.56,65.34]
[1723128769268,6.1679,159.71,159.56,20.34]
[1723128769493,56.7639,159.76,159.56,20.34]
[1723128769769,1.5655467,159.75,159.57,45.0]
[1723128770080,33.9,159.73,159.58,20.34]
[1723128770246,1.56593459,159.72,159.59,20.0]
[1723128770570,1.56593459,159.72,159.58,0.17]
[1723128770775,35.46595503,159.73,159.57,0.17]
[1723128771270,0.17,159.72,159.57,0.17]
[1723128771458,1.56610173,159.71,159.57,0.17]
[1723128771652,1.90610118,159.7,159.57,0.17]
[1723128771851,0.17,159.69,159.57,0.17]
[1723128772069,1.90610067,159.69,159.53,15.2883]
[1723128772364,46.90610067,159.69,159.53,15.2883]
[1723128773568,46.90610067,159.69,159.54,0.17]
[1723128773773,46.90610067,159.69,159.54,20.17]
[1723128774176,0.17,159.69,159.54,20.17]
[1723128774357,33.9,159.7,159.54,20.17]
[1723128774553,9.21202324,159.74,159.54,20.17]
[1723128774756,21.56588936,159.73,159.54,20.17]
[1723128775051,21.56588936,159.73,159.55,0.17]
[1723128775859,45.34,159.72,159.55,0.17]
[1723128776067,1.56611162,159.71,159.55,0.17]
[1723128776279,1.90610315,159.7,159.55,0.17]
[1723128776578,49.3159,159.68,159.43,21.9449]
[1723128776774,66.90651214,159.67,159.45,33.9]
[1723128777074,33.9,159.65,159.45,33.9]
[1723128777269,46.90668088,159.64,159.45,33.9]
[1723128777773,20.0,159.63,159.45,33.9]
[1723128777956,46.90681495,159.62,159.45,33.9]
[1723128778361,46.56681495,159.62,159.45,33.9]
[1723128778574,0.17,159.61,159.45,33.9]
[1723128778879,1.5668821,159.61,159.45,33.9]
[1723128779182,1.56680627,159.6,159.45,33.9]
[1723128779471,1.56680627,159.6,159.37,12.94539078]
[1723128779472,16.0858,159.58,159.37,6.51660519]
[1723128779674,46.90748837,159.57,159.38,33.9]
[1723128780075,52.83468837,159.57,159.37,9.32027515]
[1723128780274,6.4608,159.59,159.44,22.5616]
[1723128780582,21.6451,159.63,159.46,33.9]
[1723128780755,21.6451,159.63,159.49,33.9]
[1723128781079,6.237,159.63,159.49,33.9]
[1723128781260,6.237,159.63,159.5,45.0]
[1723128781485,6.237,159.63,159.51,20.17]
[1723128781660,6.237,159.63,159.52,0.17]
[1723128781859,33.9,159.61,159.47,2.73168649]
[1723128782063,15.4332,159.62,159.37,6.50988644]
[1723128782064,33.9,159.57,159.37,6.50988644]
[1723128782677,35.4675947,159.6,159.39,33.9]
[1723128782869,65.34,159.59,159.39,33.9]
[1723128783184,1.56714236,159.58,159.39,33.9]
[1723128783567,1.56704805,159.57,159.42,33.9]
[1723128783866,1.56704805,159.57,159.43,15.3077]
[1723128784062,1.56704805,159.57,159.44,20.0]
[1723128784260,15.4332,159.62,159.44,20.0]
[1723128784261,1.56695115,159.61,159.44,20.0]
[1723128784462,1.56696771,159.6,159.44,20.0]
[1723128784664,1.56696771,159.6,159.45,0.17]
[1723128784868,1.56696771,159.6,159.45,0.34]
[1723128785385,1.56688885,159.61,159.45,0.34]
[1723128785597,15.4332,159.62,159.45,79.24]
[1723128785898,6.237,159.63,159.49,6.2021]
[1723128786112,6.237,159.63,159.5,45.34]
[1723128786258,6.237,159.63,159.51,20.0]
[1723128786460,6.4177,159.67,159.52,0.34]
[1723128787093,1.56629602,159.66,159.52,0.34]
[1723128787381,1.56629899,159.66,159.53,16.5713]
[1723128787590,1.56629899,159.66,159.54,20.0]
[1723128787959,1.56629899,159.66,159.49,6.2021]
[1723128788489,47.9277,159.67,159.49,6.2021]
[1723128788490,6.4177,159.67,159.49,6.2021]
[1723128788796,46.56635703,159.66,159.49,6.2021]
[1723128789292,46.56635703,159.66,159.5,65.0]
[1723128789596,46.56635703,159.66,159.51,0.17]
[1723128789891,0.17,159.65,159.51,0.17]
[1723128790088,46.56635703,159.66,159.51,0.17]
[1723128790397,2.73392168,159.71,159.51,45.17]
[1723128790560,6.6123,159.72,159.52,20.17]
[1723128790761,6.6123,159.72,159.53,45.17]
[1723128790959,6.6123,159.72,159.54,20.17]
[1723128791161,31.3288,159.6,159.24,31.49851308]
[1723128791366,22.644,159.55,159.32,16.7004]
[1723128791595,1.56807264,159.54,159.32,16.7004]
[1723128791766,1.56807264,159.54,159.32,16.6004]
[1723128792095,30.0,159.53,159.32,16.6004]
[1723128792466,66.90812084,159.52,159.32,16.6004]
[1723128793168,30.0,159.51,159.32,16.6004]
[1723128793378,66.90831529,159.5,159.32,16.6004]
[1723128793785,65.34,159.5,159.32,16.6004]
[1723128794063,1.56818932,159.49,159.32,16.6004]
[1723128794263,0.34,159.48,159.32,16.6004]
[1723128794463,31.90838004,159.48,159.32,16.6004]
[1723128794696,45.0,159.47,159.32,16.6004]
[1723128795059,0.34,159.46,159.32,16.6004]
[1723128795370,0.34,159.46,159.3,0.8354333]
[1723128795371,1.5683955,159.45,159.3,0.8354333]
[1723128795569,30.34,159.44,159.3,0.8354333]
[1723128795776,46.56872539,159.43,159.3,0.8354333]
[1723128796296,0.34,159.42,159.3,0.8354333]
[1723128796583,1.56900777,159.41,159.3,0.8354333]
[1723128796969,0.34,159.4,159.3,0.8354333]
[1723128797184,45.0,159.41,159.3,0.8354333]
[1723128797493,51.1742,159.43,159.3,0.8354333]
[1723128797699,1.90882272,159.42,159.3,0.8354333]
[1723128798967,6.1742,159.43,159.3,0.8354333]
[1723128799170,1.56858699,159.42,159.3,0.8354333]
[1723128800370,0.17,159.41,159.3,0.8354333]
[1723128800775,6.1742,159.43,159.3,0.8354333]
[1723128800972,46.90887416,159.42,159.3,0.8354333]
[1723128801303,1.56882605,159.42,159.3,0.8354333]
[1723128801476,1.56882605,159.42,159.31,0.17]
[1723128801673,1.56882605,159.42,159.3,0.8354333]
[1723128802193,30.0,159.4,159.3,0.8354333]
[1723128802495,1.73915362,159.39,159.3,0.8354333]
[1723128802792,0.17,159.38,159.3,0.8354333]
[1723128802994,1.73934879,159.38,159.3,0.8354333]
[1723128803169,46.73934306,159.39,159.3,0.8354333]
[1723128803485,1.56934306,159.37,159.3,0.8354333]
[1723128803975,0.17,159.38,159.3,0.8354333]
[1723128804171,46.73922985,159.39,159.3,0.8354333]
[1723128804393,1.56917195,159.38,159.3,0.8354333]
[1723128805584,46.7391435,159.39,159.3,0.8354333]
[1723128806086,0.17,159.38,159.3,0.8354333]
[1723128806289,71.51,159.35,159.3,0.8354333]
[1723128806503,6.2288,159.33,159.15,21.7215]
[1723128806787,66.91010337,159.32,159.15,21.7215]
[1723128807095,66.91010337,159.32,159.15,24.43498323]
[1723128807292,30.0,159.3,159.15,24.43498323]
[1723128807499,45.0,159.29,159.15,24.43498323]
[1723128807988,13.18018395,159.38,159.16,41.51]
[1723128808197,20.0,159.37,159.16,41.51]
[1723128808573,21.56941386,159.37,159.16,41.51]
[1723128808792,21.56941386,159.37,159.15,24.43498323]
[1723128809175,21.56941386,159.37,159.16,20.0]
[1723128809788,45.0,159.36,159.16,20.0]
[1723128809988,1.73957632,159.35,159.16,20.0]
[1723128810194,21.73957632,159.35,159.16,20.0]
[1723128810376,6.52118395,159.38,159.2,41.51]
[1723128810579,23.3632,159.43,159.22,6.1757]
[1723128810795,23.3632,159.43,159.23,65.34]
[1723128810993,24.93202225,159.43,159.23,20.34]
[1723128811198,23.3632,159.43,159.23,20.34]
[1723128811385,24.93190266,159.43,159.23,20.34]
[1723128811579,23.3632,159.43,159.23,20.34]
[1723128811782,6.5903,159.43,159.25,16.8609]
[1723128811979,1.56864283,159.42,159.26,20.34]
[1723128812196,1.56864283,159.42,159.26,20.17]
[1723128812997,13.1250108,159.43,159.26,20.17]
[1723128813296,1.73875391,159.42,159.26,20.17]
[1723128813687,1.73875391,159.42,159.27,0.17]
[1723128813888,0.17,159.42,159.27,0.17]
[1723128814089,8.15928822,159.43,159.27,0.17]
[1723128814090,6.5903,159.43,159.27,0.17]
[1723128814982,1.56870618,159.42,159.27,0.17]
[1723128815180,1.56892552,159.42,159.27,0.17]
[1723128815379,46.56892552,159.42,159.27,0.17]
[1723128815578,45.0,159.42,159.27,0.17]
[1723128816199,6.5903,159.43,159.27,0.17]
[1723128817100,6.5903,159.43,159.27,41.68]
[1723128817306,6.5903,159.43,159.28,21.54391307]
[1723128817489,6.5903,159.43,159.29,1.54382682]
[1723128817687,6.5903,159.43,159.3,0.17]
[1723128818295,45.0,159.42,159.3,0.17]
[1723128818783,0.17,159.41,159.29,1.37382682]
[1723128818979,1.90899545,159.41,159.29,1.37382682]
[1723128819210,21.90899545,159.41,159.29,1.37382682]
[1723128819503,45.0,159.4,159.29,1.37382682]
[1723128819706,6.5903,159.43,159.29,1.37382682]
[1723128820289,6.5903,159.43,159.3,0.17]
[1723128820493,22.64360341,159.48,159.3,0.34]
[1723128820692,16.1223,159.48,159.31,6.593]
[1723128821007,16.1223,159.48,159.32,20.34]
[1723128822203,1.56826924,159.47,159.32,20.34]
[1723128822498,1.56826924,159.47,159.32,20.0]
[1723128822702,45.0,159.47,159.32,20.0]
[1723128823083,16.1223,159.48,159.32,20.0]
[1723128823599,6.5992,159.49,159.34,41.51]
[1723128823803,23.1272,159.54,159.35,65.17]
[1723128824004,23.1272,159.54,159.36,0.17]
[1723128826113,24.69480543,159.54,159.35,0.17]
[1723128826298,0.17,159.53,159.35,0.17]
[1723128826482,23.1272,159.54,159.34,22.80139706]
[1723128826682,1.56771666,159.53,159.34,22.80139706]
[1723128827008,1.73790976,159.52,159.34,22.80139706]
[1723128827304,1.73790976,159.52,159.34,2.80139706]
[1723128827492,1.73790976,159.52,159.33,16.0548]
[1723128827902,0.17,159.51,159.33,18.72950167]
[1723128828102,20.0,159.53,159.34,0.71005797]
[1723128828290,0.17,159.52,159.34,0.71005797]
[1723128828483,20.0,159.53,159.35,0.17]
[1723128828702,0.17,159.52,159.35,0.34]
[1723128828899,23.1272,159.54,159.35,0.34]
[1723128829105,23.1272,159.54,159.36,41.51]
[1723128829404,1.56757599,159.53,159.37,0.34]
[1723128829581,1.56757599,159.53,159.37,0.17]
[1723128829986,1.56757599,159.53,159.35,0.17]
[1723128829987,1.56757599,159.53,159.34,0.71005797]
[1723128830296,0.17,159.52,159.34,0.71005797]
[1723128830614,0.34,159.52,159.34,0.71005797]
[1723128830799,1.90813664,159.52,159.34,0.71005797]
[1723128831108,43.07814001,159.51,159.34,0.71005797]
[1723128831289,65.17,159.5,159.34,0.71005797]
[1723128831488,1.73883728,159.49,159.34,0.71005797]
[1723128831704,1.73857027,159.48,159.33,16.0548]
[1723128831896,0.34,159.47,159.33,16.0548]
[1723128832911,1.56845783,159.46,159.33,16.0548]
[1723128833108,0.34,159.45,159.33,16.0548]
[1723128833315,1.90867159,159.45,159.33,16.0548]
[1723128833507,1.90867159,159.45,159.28,15.7067]
[1723128833717,6.5763,159.44,159.28,15.7067]
[1723128833914,66.90906511,159.43,159.28,15.7067]
[1723128834093,7.84201325,159.42,159.28,15.7067]
[1723128834288,65.34,159.41,159.28,15.7067]
[1723128834515,1.56919061,159.4,159.28,15.7067]
[1723128834710,0.34,159.39,159.28,15.7067]
[1723128835018,1.90919179,159.39,159.28,15.7067]
[1723128836095,65.0,159.41,159.28,15.7067]
[1723128836298,45.0,159.41,159.28,15.7067]
[1723128836611,45.0,159.41,159.29,0.17]
[1723128836809,45.0,159.41,159.29,0.34]
[1723128837015,6.5206232,159.42,159.29,0.34]
[1723128837326,1.56850933,159.48,159.3,6.6274]
[1723128837506,6.5983,159.49,159.3,6.6274]
[1723128837507,1.56876359,159.47,159.31,20.0]
[1723128837999,1.56876359,159.47,159.32,0.17]
[1723128838226,1.56854816,159.48,159.32,0.17]
[1723128838904,1.56854816,159.48,159.32,0.34]
[1723128839510,1.56839814,159.48,159.32,0.34]
[1723128840229,21.56839814,159.48,159.32,0.34]
[1723128840524,0.17,159.47,159.32,0.34]
[1723128840694,6.51817084,159.5,159.32,0.34]
[1723128840900,1.56827513,159.49,159.32,0.34]
[1723128842027,6.51817084,159.5,159.34,6.5608]
[1723128842247,47.27630119,159.56,159.35,20.34]
[1723128842551,5.76630119,159.56,159.36,16.1308]
[1723128842696,5.76630119,159.56,159.37,71.5382]
[1723128843236,5.76630119,159.56,159.38,64.7771]
[1723128843527,5.76630119,159.56,159.42,6.1439]
[1723128843699,5.76630119,159.56,159.43,20.34]
[1723128845658,5.76630119,159.56,159.43,20.17]
[1723128845955,0.17,159.55,159.43,20.17]
[1723128846250,45.0,159.55,159.43,20.17]
[1723128846820,0.17,159.54,159.43,20.17]
[1723128847049,45.0,159.55,159.43,20.17]
[1723128847254,45.0,159.55,159.44,0.17]
[1723128848020,1.56747993,159.54,159.44,0.17]
[1723128848220,45.0,159.55,159.43,20.17]
[1723128848424,0.17,159.54,159.43,20.17]
[1723128848621,1.73763687,159.54,159.43,20.17]
[1723128848832,1.73763687,159.54,159.42,6.1439]
[1723128849126,1.73763687,159.54,159.2,95.33361004]
[1723128849127,41.51,159.51,159.37,6.796]
[1723128849445,46.90843964,159.5,159.37,6.796]
[1723128849628,20.0,159.49,159.37,6.796]
[1723128849827,46.90838358,159.48,159.37,6.796]